[Event "E Women's Grand Prix | Second Leg 2022/23"]
[Site "Chess.com"]
[Date "2023.02.04"]
[Round "3"]
[White "Abdumalik, Zhansaya"]
[Black "Zhu, Jiner"]
[Result "0-1"]
[WhiteElo "2496"]
[BlackElo "2486"]
[ECO "B33"]
[EventDate "2023.??.??"]
[Annotator "rafael"]
[PlyCount "90"]
[Beauty "7289654257191"]
[EventType "swiss"]
[EventRounds "11"]
[EventCountry "FID"]
[TimeControl "5400+30"]

1.e4 c5 2.Nf3 e6 {If you want to play the Sveshnikov Variation but don't want to allow White to play the Rossolimo (3.Bb5), then this is the move order to choose. White gets another option, as we'll see.} 3.d4 cxd4 4.Nxd4 Nf6 5.Nc3 Nc6 {Here White has an important choice to make: face Sveshnikov, one of the lines with the best reputation in the Sicilian, or else capture on c6. I'm not an expert on either of these two lines, but it looks like Black is holding up well on both.} 6.Ndb5 ( 6.Nxc6 bxc6 7.e5 Nd5 8.Ne4 ) 6...d6 7.Bf4 e5 8.Bg5 a6 9.Na3 b5 {Here White has another important decision to make: capture on f6 or play 10.Nd5. Both are very popular. In my king pawn days, I used to choose the second option, influenced by one of my favorite opening books and which I studied with dedication as a child: \"Beating The Sicilian\" by John Nunn.} 10.Nd5 ( 10.Bxf6 ) 10...Be7 11.Bxf6 Bxf6 12.c3 {This is the move suggested by Nunn in the aforementioned book. And that's as far as I can remember: unfortunately, I lost the book in one of my many residence changes since the early 1990s.} ( 12.c4 {is a move that has become very popular in recent years.} ) 12...Bg5 13.Nc2 Rb8 14.Be2 ( 14.a4 {is a thematic move, but everything here has already been studied a lot.} 14...bxa4 15.Ncb4 Nxb4 16.cxb4 ( 16.Nxb4 Bd7 {Black also equalizes. Here is a recent example:} 17.Bxa6 Qa5 18.Qxd6 Rb6 19.Qd3 Be6 20.O-O O-O 21.Bc4 Rd8 22.Bd5 Bxd5 23.exd5 Be7 {Ter-Sahakyan-Wang, Abu Dhabi 2022.} ) 16...O-O 17.Rxa4 a5 $1 {[%c_effect a5;square;a5;type;GreatFind;persistent;true] Here, as usual in the Sveshnikov, we have long forced lines in which Black achieves equality.} ) ( 14.a3 $5 {[%c_effect a3;square;a3;type;Interesting;persistent;true] Taking the knight to b4 and then capturing it with a pawn is a recent idea.} ) 14...O-O 15.O-O Be6 16.Ndb4 ( 16.Qd3 {is the most common.} ) 16...Nxb4 17.Nxb4 Qb6 18.Qd3 ( 18.a4 a5 19.Nd5 Bxd5 20.Qxd5 bxa4 {It seems that Black achieves a forced draw here.} 21.Rfb1 Rfc8 22.Bc4 Qc5 23.Rxa4 Qxd5 24.Bxd5 Bd2 $1 {[%c_effect d2;square;d2;type;GreatFind;persistent;true]} 25.Raa1 Rc5 {Uecker-Loeffler, email 2017.} ) ( 18.Bg4 a5 19.Bxe6 fxe6 20.Nd3 {This is also possible, but not very dangerous for Black, since he doesn't need to worry about the d5-square anymore, and that's a huge relief.} ) 18...Bc4 19.Qd1 ( 19.Qf3 a5 $1 {[%c_effect a5;square;a5;type;GreatFind;persistent;true]} ) 19...Be6 20.Qd3 a5 {An ambitious decision, refusing to repeat moves.} 21.Nd5 Qb7 22.Rad1 ( 22.Rfd1 {is more popular.} 22...Rfc8 {There's still a lot of theory here, but Black is fine. One possible plan is to activate the dark-squared bishop with Bd8 and then take it to b6, just in time.} ) 22...b4 {A pretty straightforward move, but still nothing new. A recent correspondence game followed with the more natural 22...Rfc8.} ( 22...Rfc8 23.a3 Bd8 24.h3 Rc5 25.b4 Rcc8 {and the game later ended in a draw. Wosch-Perez, email 2019.} ) 23.c4 $6 {[%c_effect c4;square;c4;type;Inaccuracy;persistent;true] This move puts White in an uncomfortable position.} ( 23.cxb4 {is better:} 23...axb4 24.Qg3 Bh6 {It is not clear that this is the best square for the bishop.} 25.Bc4 {and White can fight for a small advantage, since he has stabilized the knight on d5. All this was played in Boskovic-Vuckovic, Palic 2014.} ) 23...b3 $1 {[%c_effect b3;square;b3;type;GreatFind;persistent;true]} 24.a3 Rfc8 {Black changed the pawn structure on the queenside, and this is clear to her benefit as she gains a square on d4, which in a distant dream can be occupied after the Bd8-b6 maneuver. White's position will quickly collapse in the next few moves, so we can consider this position as critical: Abdumalik needs a good plan.} 25.Qg3 ( 25.h3 {Looks good, preparing to play Bg4, but Black gets a clear advantage after} 25...Rc5 $1 {[%c_effect c5;square;c5;type;GreatFind;persistent;true] Preparing to capture the d5-knight without allowing White to recapture with the queen.} ) 25...Bd8 {Only now does a new move appear on the board.} ( 25...Bh6 $6 {[%c_effect h6;square;h6;type;Inaccuracy;persistent;true] was played in Pineda-Bouaziz, Tripoli 1976.} ) 26.Kh1 $6 {[%c_effect h1;square;h1;type;Inaccuracy;persistent;true] One of my favorite concepts in positional play is \"harmony,\" which means making sense of your moves, one flowing with the other. Smyslov, for example, was a harmony genius. White's next move doesn't make a good impression in this regard; it doesn't seem to flow naturally and White's plan of advancing the pawn to f4 is hardly effective. This is what we call an \"ugly\" move. I must be honest: there are many instances where ugly moves are the best ones. Alas, to Abdumalik's bad luck, this is not one of them.} ( 26.Nc3 $1 {[%c_effect c3;square;c3;type;GreatFind;persistent;true] is the best attempt. White must desperately try to change the trend of the game.} 26...Qc6 ( 26...Bxc4 $6 {[%c_effect c4;square;c4;type;Inaccuracy;persistent;true]} 27.Bxc4 Rxc4 28.Rxd6 {This is what White wants.} ) 27.Nb5 $1 {[%c_effect b5;square;b5;type;GreatFind;persistent;true]} 27...Qxe4 28.Bf3 Qf4 29.Nxd6 Rc7 30.Rfe1 {Although Black retains a minimal advantage, it's very clear that this is better than the game continuation.} ) 26...Rc5 $1 {[%c_effect c5;square;c5;type;GreatFind;persistent;true] The most accurate move. By the way, I was impressed by Zhu's precision in carrying out her initiative.} ( 26...Bb6 {is natural, but Black's advantage is not so big after} 27.f4 $1 {[%c_effect f4;square;f4;type;GreatFind;persistent;true]} ( 27.Qxb3 Bd4 ) 27...Bxd5 ( 27...Bd4 $2 {[%c_effect d4;square;d4;type;Mistake;persistent;true] leads to a surprisingly lethal attack after} 28.Nf6+ Kh8 29.Nxh7 $1 {[%c_effect h7;square;h7;type;GreatFind;persistent;true]} 29...Kxh7 30.f5 Bd7 31.f6 $1 {[%c_effect f6;square;f6;type;GreatFind;persistent;true]} 31...gxf6 32.Rxf6 ) 28.Rxd5 Bd4 ) 27.Nc3 ( 27.f4 $2 {[%c_effect f4;square;f4;type;Mistake;persistent;true]} 27...Bxd5 28.exd5 Bf6 {with a dream position for Black.} ) 27...Qc6 28.f4 Bxc4 ( 28...exf4 29.Qxf4 Re5 {This is also very good for Black.} ) 29.Bxc4 Rxc4 30.fxe5 {It's hard to recommend anything.} ( 30.f5 Rxc3 $1 {[%c_effect c3;square;c3;type;GreatFind;persistent;true] The typical Sicilian sacrifice must always be analyzed.} 31.Qxc3 Qxc3 32.bxc3 b2 33.Rb1 Bg5 $1 {[%c_effect g5;square;g5;type;GreatFind;persistent;true] And the bishop goes to c1 with a clear advantage.} ) ( 30.Nd5 exf4 ( 30...Rxe4 $2 {[%c_effect e4;square;e4;type;Mistake;persistent;true]} 31.Qf3 $1 {[%c_effect f3;square;f3;type;GreatFind;persistent;true] gives White counterplay.} ) 31.Qxf4 Qe8 32.Qxd6 Rbc8 {again with a clear advantage for Black.} ) 30...dxe5 31.Qxe5 {White regains the pawn but opens the game to Black's bishop.} 31...Bc7 32.Qh5 Qe6 $1 {[%c_effect e6;square;e6;type;GreatFind;persistent;true] Getting ready to take the bishop to his ideal square, e5.} 33.Rd5 f6 $1 {[%c_effect f6;square;f6;type;GreatFind;persistent;true]} 34.Rb5 Rd4 ( 34...Rxb5 35.Qxb5 Rd4 {is also very good.} ) 35.Rxb8+ Bxb8 36.Qxa5 Rd2 37.Qh5 ( 37.Rb1 {leads to a pretty checkmate after} 37...Qg4 38.Rg1 Qh4 39.h3 Qxh3+ 40.gxh3 Rh2# ) ( 37.Qb5 Qe5 $1 {[%c_effect e5;square;e5;type;GreatFind;persistent;true]} 38.Qxe5 ( 38.Qxb3+ Kh8 39.g3 Rxh2+ 40.Kxh2 Qxg3+ 41.Kh1 Qh2# ) 38...Bxe5 39.Rb1 Bxc3 40.bxc3 b2 41.h3 Kf7 {The endgame is winning for Black, even a pawn down. White's rook is very passive, and the king will march to the queenside.} ) ( 37.Rd1 $5 {[%c_effect d1;square;d1;type;Interesting;persistent;true] is the best chance. Precision is required now.} 37...Qc4 $1 {[%c_effect c4;square;c4;type;GreatFind;persistent;true]} ( 37...Rxd1+ 38.Nxd1 Qxe4 39.Qd2 {Here White has good drawing chances.} ) 38.Qh5 ( 38.Rxd2 $2 {[%c_effect d2;square;d2;type;Mistake;persistent;true]} 38...Qf1# ) 38...h6 $1 {[%c_effect h6;square;h6;type;GreatFind;persistent;true]} 39.Qf3 Rxd1+ 40.Nxd1 Be5 {White is tied up; Black should win this endgame with accurate play.} ) 37...Rxb2 38.Rd1 Bd6 $1 {[%c_effect d6;square;d6;type;GreatFind;persistent;true]} 39.Nb5 Qxe4 $1 {[%c_effect e4;square;e4;type;GreatFind;persistent;true] Very well calculated.} 40.Qf7+ Kh8 $1 {[%c_effect h8;square;h8;type;GreatFind;persistent;true] Of course, this was seen in advance by the Chinese player.} ( 40...Kxf7 $6 {[%c_effect f7;square;f7;type;Inaccuracy;persistent;true] Of course, this was not the intention, but, just for readers' curiosity, it's possible that even this position is winning.} 41.Nxd6+ Ke6 42.Nxe4 Rc2 $1 {[%c_effect c2;square;c2;type;GreatFind;persistent;true]} 43.Nd2 b2 44.Nb1 Rc1 45.Rg1 Ke5 {White is paralyzed, and the king is going to the queenside.} ) 41.Rg1 Bc5 42.h3 h6 ( 42...Rb1 43.Rxb1 Qxb1+ 44.Kh2 Qe1 $1 {[%c_effect e1;square;e1;type;GreatFind;persistent;true] This is also a nice way to win. The white queen must feel bad being so close to the king and not being able to give a check.} ) 43.Nc3 Qa8 44.Nd5 Bxg1 45.Kxg1 Rxg2+ $1 {[%c_effect g2;square;g2;type;GreatFind;persistent;true] A beautiful ending to a game masterfully handled by Zhu.} ( 45...Rxg2+ 46.Kxg2 b2 ) 0-1

[Event "E Women's Grand Prix | Second Leg 2022/23"]
[Site "Chess.com"]
[Date "2023.02.08"]
[Round "6"]
[White "Kosteniuk, Alexandra"]
[Black "Abdumalik, Zhansaya"]
[Result "1/2-1/2"]
[WhiteElo "2519"]
[BlackElo "2496"]
[ECO "B12"]
[EventDate "2023.??.??"]
[Annotator "rafael"]
[PlyCount "79"]
[Beauty "6120194186791"]
[EventType "swiss"]
[EventRounds "11"]
[EventCountry "FID"]
[TimeControl "5400+30"]

1.e4 c6 2.d4 d5 3.e5 Bf5 4.g4 {An ultra-aggressive option against the Caro-Kann Defense.} 4...Be4 $1 {[%c_effect e4;square;e4;type;GreatFind;persistent;true] The most accurate move, provoking the white pawn to f3.} 5.f3 Bg6 6.h4 ( 6.e6 $1 {[%c_effect e6;square;e6;type;GreatFind;persistent;true] My impression is that this move order is more accurate.} 6...fxe6 7.h4 ) 6...h5 7.e6 {This move is the point of White's opening idea: a pawn sacrifice to create weaknesses around the opponent's king. But now Black is not obliged to accept the gift.} 7...Qd6 $1 {[%c_effect d6;square;d6;type;GreatFind;persistent;true]} ( 7...fxe6 8.Bd3 Bxd3 9.Qxd3 Qd6 {leads to a chaotic position with chances for both sides.} ) 8.exf7+ Kxf7 $6 {[%c_effect f7;square;f7;type;Inaccuracy;persistent;true] Probably Abdumalik was already out of preparation, as the computer doesn't like this move and the capture with the bishop was played almost unanimously before.} ( 8...Bxf7 $1 {[%c_effect f7;square;f7;type;GreatFind;persistent;true] Black has a fine position, for instance:} 9.Be3 hxg4 10.fxg4 Nf6 11.Nc3 Qe6 {Vallejo Pons-So, Tbilisi 2017.} ) 9.g5 $2 {[%c_effect g5;square;g5;type;Mistake;persistent;true]} ( 9.Qe2 $1 {[%c_effect e2;square;e2;type;GreatFind;persistent;true] This is the best way to fight for the initiative.} 9...hxg4 ( 9...Qg3+ $6 {[%c_effect g3;square;g3;type;Inaccuracy;persistent;true]} 10.Kd1 $1 {[%c_effect d1;square;d1;type;GreatFind;persistent;true] White is not afraid to play the king in the center in this line.} ) ( 9...Nd7 10.Nh3 ) 10.fxg4 Nf6 11.Nf3 {with good attacking chances for White.} ) 9...e5 ( 9...Qg3+ {is also very good.} 10.Kd2 ( 10.Ke2 Nd7 ) 10...e5 $1 {[%c_effect e5;square;e5;type;GreatFind;persistent;true] Playing with a king on d2 is not very pleasant. Black has a clear advantage.} ) 10.Ne2 Ne7 11.Bh3 Bf5 $1 {[%c_effect f5;square;f5;type;GreatFind;persistent;true]} 12.Bxf5 Nxf5 {It's clear that the opening was a complete success for Black. Her king, even on f7, is safer than White's, the knight on f5 is very well placed, and her remaining pieces have free development, while White has barely left the first rank. Quite a result for just over 10 moves in the Caro-Kann $1} 13.dxe5 Qxe5 14.Bf4 Qe6 15.Qd2 g6 $6 {[%c_effect g6;square;g6;type;Inaccuracy;persistent;true] It doesn't seem necessary to lose time before developing the bishop.} ( 15...Bc5 16.Nc3 Re8 17.O-O-O Nd7 {with a clear advantage.} ) 16.Nc3 Bg7 17.O-O-O d4 $2 {[%c_effect d4;square;d4;type;Mistake;persistent;true]} ( 17...Nd7 {is better:} 18.Rhe1 Ne5 ) 18.Ne4 $6 {[%c_effect e4;square;e4;type;Inaccuracy;persistent;true] Missing a golden chance to sacrifice a piece for the initiative. Now it's White's turn to play with better development.} ( 18.Rhe1 $3 {[%c_effect e1;square;e1;type;Brilliant;persistent;true]} 18...Qc4 {Accepting the sacrifice leads to a dangerous position.} ( 18...dxc3 $6 {[%c_effect c3;square;c3;type;Inaccuracy;persistent;true]} 19.Nxc3 Qc4 20.Be5 $1 {[%c_effect e5;square;e5;type;GreatFind;persistent;true]} 20...Na6 ( 20...Rf8 21.Re4 $1 {[%c_effect e4;square;e4;type;GreatFind;persistent;true]} 21...Qc5 22.Bxg7 Kxg7 23.b4 $1 {[%c_effect b4;square;b4;type;GreatFind;persistent;true]} 23...Qb6 24.Na4 {Followed by 25.Nc5 with a strong attack.} ) 21.Qd7+ Kg8 22.Qxb7 {Black is in trouble.} ) 19.Ne4 Qxa2 20.Qb4 {with the same position as in the game, but with White's rook already on e1.} ) 18...Qxa2 19.Qb4 {The game becomes sharp.} 19...b6 20.Nxd4 $1 {[%c_effect d4;square;d4;type;GreatFind;persistent;true] Offering material to open the position.} 20...Na6 {A solid and good reaction.} ( 20...c5 21.Nxc5 $5 {[%c_effect c5;square;c5;type;Interesting;persistent;true]} ( 21.Qb3+ Qxb3 22.Nxb3 {leads to an equal endgame.} ) 21...bxc5 22.Qb7+ Ne7 23.Rhe1 Re8 24.Bd6 {After the storm comes the calm. The game ends in perpetual check.} 24...Qa1+ 25.Kd2 Qa5+ 26.Kc1 Qa1+ ) ( 20...Nxd4 $6 {[%c_effect d4;square;d4;type;Inaccuracy;persistent;true]} 21.Rxd4 c5 ( 21...Bxd4 $2 {[%c_effect d4;square;d4;type;Mistake;persistent;true] This is just suicide.} 22.Qxd4 {With a decisive attack due to the dark squares.} ) 22.Qa4 Qxa4 23.Rxa4 Nc6 24.Nd6+ Kg8 25.Re1 {With some advantage for White in the endgame.} ) 21.Qb3+ Qxb3 22.Nxb3 {The endgame is roughly equal.} 22...Rad8 23.c3 c5 ( 23...Rxd1+ 24.Rxd1 Ke6 {This is fine for Black.} ) 24.Kc2 ( 24.Nbd2 $5 {[%c_effect d2;square;d2;type;Interesting;persistent;true] is a better attempt to gain an advantage, although the game remains equal after} 24...Nb8 25.Nc4 Rxd1+ 26.Rxd1 Nxh4 27.Ned6+ Ke7 28.Re1+ Kd7 ) 24...Nb8 $1 {[%c_effect b8;square;b8;type;GreatFind;persistent;true] The knight heads to c6.} 25.Nbd2 Nc6 26.Nc4 Rxd1 27.Rxd1 Rd8 28.Ned6+ Nxd6 29.Nxd6+ Ke6 30.Re1+ Kd7 31.Rd1 Ke6 32.Re1+ Kd7 {It seems that everything will end in a draw, but Kosteniuk decides to continue the fight.} 33.Nc4 Rf8 34.Re4 $6 {[%c_effect e4;square;e4;type;Inaccuracy;persistent;true] This creates some problems for White.} ( 34.Rd1+ Ke8 35.Re1+ {with a draw.} ) 34...b5 35.Ne3 Nd8 $1 {[%c_effect d8;square;d8;type;GreatFind;persistent;true]} 36.Nd5 Ne6 {Now only Black can play to win.} 37.b3 Rf5 38.c4 b4 39.Kd3 Bc3 $6 {[%c_effect c3;square;c3;type;Inaccuracy;persistent;true]} ( 39...Rf7 $1 {[%c_effect f7;square;f7;type;GreatFind;persistent;true] This move defends the seventh rank and prepares to take the knight to d4. White would have an arduous task ahead, fighting for a draw.} ) 40.Ke3 {The game is equal again, and the players decided to call it a day.} 1/2-1/2